[Event "*** Titled Tuesday 3|2 Blitz"]
[Site "Chess.com"]
[Date "2016.05.03"]
[Round "9"]
[White "MinhGTrAn"]
[Black "exoticprincess"]
[Result "1/2-1/2"]
[WhiteElo "2650"]
[BlackElo "2829"]
[TimeControl "180+2"]
[EndTime "19:03:59 PDT"]
[Termination "Game drawn by 50-move rule"]

1. d4 {[%clk 0:03:01.9]} 1... Nf6 {[%clk 0:03:01]} 2. c4 {[%clk 0:03:02.6]} 2...
g6 {[%clk 0:03:02.5]} 3. Nc3 {[%clk 0:03:04]} 3... Bg7 {[%clk 0:03:04.1]} 4. e4
{[%clk 0:03:05.4]} 4... O-O {[%clk 0:03:04.6]} 5. Bd3 {[%clk 0:03:06.6]} 5... c6
{[%clk 0:03:05.6]} 6. Nge2 {[%clk 0:03:02.9]} 6... d6 {[%clk 0:03:04.9]} 7. f3
{[%clk 0:02:59.9]} 7... Na6 {[%clk 0:03:03.9]} 8. Be3 {[%clk 0:03:00.1]} 8...
Nd7 {[%clk 0:02:50.4]} 9. O-O {[%clk 0:02:59.7]} 9... Nc7 {[%clk 0:02:40.6]} 10.
b4 {[%clk 0:02:59.3]} 10... d5 {[%clk 0:02:34.4]} 11. cxd5 {[%clk 0:02:57.7]}
11... cxd5 {[%clk 0:02:35.5]} 12. Qd2 {[%clk 0:02:48.3]} 12... Re8 {[%clk
0:02:19.1]} 13. Rac1 {[%clk 0:02:35]} 13... Nb6 {[%clk 0:02:19.8]} 14. a4 {[%clk
0:02:32.4]} 14... Bd7 {[%clk 0:02:06.2]} 15. a5 {[%clk 0:02:27.3]} 15... Na4
{[%clk 0:02:00.5]} 16. Nxa4 {[%clk 0:02:12.3]} 16... Bxa4 {[%clk 0:02:01.1]} 17.
Nc3 {[%clk 0:02:09.2]} 17... Bd7 {[%clk 0:02:02.6]} 18. exd5 {[%clk 0:02:07.1]}
18... e6 {[%clk 0:01:55.1]} 19. dxe6 {[%clk 0:01:38.8]} 19... Bxe6 {[%clk
0:01:53.7]} 20. Be4 {[%clk 0:01:35.1]} 20... Nd5 {[%clk 0:01:51.3]} 21. Bf2
{[%clk 0:01:33.2]} 21... Qd7 {[%clk 0:01:49.5]} 22. Nxd5 {[%clk 0:01:30.2]}
22... Bxd5 {[%clk 0:01:50.7]} 23. Bxd5 {[%clk 0:01:32.1]} 23... Qxd5 {[%clk
0:01:51.5]} 24. Rc5 {[%clk 0:01:34]} 24... Qd7 {[%clk 0:01:45.5]} 25. Rfc1
{[%clk 0:01:27.3]} 25... Bf8 {[%clk 0:01:37.1]} 26. R5c4 {[%clk 0:01:15.9]}
26... Qd5 {[%clk 0:01:37]} 27. h4 {[%clk 0:01:13]} 27... Rad8 {[%clk 0:01:34.8]}
28. Qg5 {[%clk 0:01:09.6]} 28... a6 {[%clk 0:01:28.9]} 29. Qxd5 {[%clk 0:01:04]}
29... Rxd5 {[%clk 0:01:29.5]} 30. Rc8 {[%clk 0:01:05.9]} 30... Rxc8 {[%clk
0:01:24.4]} 31. Rxc8 {[%clk 0:01:07.8]} 31... Kg7 {[%clk 0:01:26.3]} 32. Bg3
{[%clk 0:01:06.8]} 32... Be7 {[%clk 0:01:23.2]} 33. Rc7 {[%clk 0:01:01.5]} 33...
Bxb4 {[%clk 0:01:19.6]} 34. Rxb7 {[%clk 0:01:02.5]} 34... Bxa5 {[%clk
0:01:16.4]} 35. Be5+ {[%clk 0:01:03.8]} 35... Kf8 {[%clk 0:01:17.4]} 36. Bf6
{[%clk 0:01:02]} 36... Rb5 {[%clk 0:01:18.4]} 37. Ra7 {[%clk 0:01:01.2]} 37...
Ke8 {[%clk 0:01:19.7]} 38. Rxa6 {[%clk 0:01:00.1]} 38... Bc7 {[%clk 0:01:18.9]}
39. Kf2 {[%clk 0:00:58.9]} 39... Rb2+ {[%clk 0:01:15.5]} 40. Ke3 {[%clk
0:00:56.5]} 40... Rxg2 {[%clk 0:01:16.1]} 41. Ra7 {[%clk 0:00:53]} 41... Bd6
{[%clk 0:01:17.3]} 42. Ke4 {[%clk 0:00:50.2]} 42... Rb2 {[%clk 0:01:17.6]} 43.
Kd5 {[%clk 0:00:48.4]} 43... Rb6 {[%clk 0:01:19.1]} 44. Bg5 {[%clk 0:00:40.9]}
44... h5 {[%clk 0:01:20.2]} 45. f4 {[%clk 0:00:28.8]} 45... Kf8 {[%clk
0:01:21.3]} 46. Rd7 {[%clk 0:00:27.2]} 46... Ba3 {[%clk 0:01:15.1]} 47. f5
{[%clk 0:00:25.9]} 47... Rb5+ {[%clk 0:01:12.1]} 48. Kc6 {[%clk 0:00:24.6]}
48... Rxf5 {[%clk 0:01:13.3]} 49. d5 {[%clk 0:00:25.9]} 49... f6 {[%clk
0:01:10.5]} 50. Bh6+ {[%clk 0:00:24.9]} 50... Ke8 {[%clk 0:01:11.6]} 51. Ra7
{[%clk 0:00:25.6]} 51... Rf3 {[%clk 0:01:11.7]} 52. d6 {[%clk 0:00:23.2]} 52...
Rc3+ {[%clk 0:01:12.8]} 53. Kd5 {[%clk 0:00:23.1]} 53... Rd3+ {[%clk 0:01:11.1]}
54. Kc4 {[%clk 0:00:23.1]} 54... Rxd6 {[%clk 0:01:12.2]} 55. Rxa3 {[%clk
0:00:23.1]} 55... Rd7 {[%clk 0:01:13]} 56. Rf3 {[%clk 0:00:19.9]} 56... Kf7
{[%clk 0:01:13.3]} 57. Bg5 {[%clk 0:00:19.5]} 57... Rd6 {[%clk 0:01:13.9]} 58.
Kc5 {[%clk 0:00:19.4]} 58... Ra6 {[%clk 0:01:14.8]} 59. Bd2 {[%clk 0:00:15.7]}
59... Re6 {[%clk 0:01:14.8]} 60. Bc3 {[%clk 0:00:16.2]} 60... Ra6 {[%clk
0:01:15.1]} 61. Kb5 {[%clk 0:00:17.1]} 61... Re6 {[%clk 0:01:15.9]} 62. Kc5
{[%clk 0:00:18.7]} 62... Ra6 {[%clk 0:01:17]} 63. Kd5 {[%clk 0:00:20.2]} 63...
Rb6 {[%clk 0:01:17.3]} 64. Bd4 {[%clk 0:00:20.8]} 64... Ra6 {[%clk 0:01:18.4]}
65. Rb3 {[%clk 0:00:21.3]} 65... Ra5+ {[%clk 0:01:19.5]} 66. Ke4 {[%clk
0:00:20.5]} 66... g5 {[%clk 0:01:17.5]} 67. Rb6 {[%clk 0:00:19.4]} 67... f5+
{[%clk 0:01:16.9]} 68. Kf3 {[%clk 0:00:18.7]} 68... Ra3+ {[%clk 0:01:18.1]} 69.
Ke2 {[%clk 0:00:16.3]} 69... Ra2+ {[%clk 0:01:19.6]} 70. Kf3 {[%clk 0:00:17.3]}
70... Ra3+ {[%clk 0:01:20.8]} 71. Ke2 {[%clk 0:00:16.2]} 71... gxh4 {[%clk
0:01:22.1]} 72. Rf6+ {[%clk 0:00:15.8]} 72... Ke7 {[%clk 0:01:23.4]} 73. Rxf5
{[%clk 0:00:17.7]} 73... h3 {[%clk 0:01:24.2]} 74. Rxh5 {[%clk 0:00:16.6]} 74...
Ra2+ {[%clk 0:01:25.4]} 75. Kf3 {[%clk 0:00:16.5]} 75... h2 {[%clk 0:01:26.7]}
76. Bf2 {[%clk 0:00:17.5]} 76... Ke6 {[%clk 0:01:27]} 77. Rxh2 {[%clk
0:00:18.3]} 77... Ra3+ {[%clk 0:01:28.5]} 78. Be3 {[%clk 0:00:19.1]} 78... Ra4
{[%clk 0:01:28.1]} 79. Rh6+ {[%clk 0:00:19]} 79... Kd5 {[%clk 0:01:29.3]} 80.
Rh5+ {[%clk 0:00:20.2]} 80... Kc6 {[%clk 0:01:30.1]} 81. Ke2 {[%clk 0:00:20.8]}
81... Ra3 {[%clk 0:01:31.4]} 82. Bd4 {[%clk 0:00:21.8]} 82... Kd7 {[%clk
0:01:31.6]} 83. Kd2 {[%clk 0:00:22.8]} 83... Ke6 {[%clk 0:01:32.8]} 84. Ke2
{[%clk 0:00:22.2]} 84... Rb3 {[%clk 0:01:33.7]} 85. Be3 {[%clk 0:00:23.2]} 85...
Ra3 {[%clk 0:01:33.9]} 86. Kf3 {[%clk 0:00:24.6]} 86... Ra4 {[%clk 0:01:35.3]}
87. Bc5 {[%clk 0:00:23]} 87... Rc4 {[%clk 0:01:36]} 88. Ke3 {[%clk 0:00:23.7]}
88... Rg4 {[%clk 0:01:37.2]} 89. Bd4 {[%clk 0:00:24.8]} 89... Kd6 {[%clk
0:01:38.7]} 90. Kd3 {[%clk 0:00:25.8]} 90... Ke6 {[%clk 0:01:40.1]} 91. Kc4
{[%clk 0:00:25.8]} 91... Re4 {[%clk 0:01:41.7]} 92. Kd3 {[%clk 0:00:25.1]} 92...
Rg4 {[%clk 0:01:42.5]} 93. Be5 {[%clk 0:00:24.6]} 93... Kd5 {[%clk 0:01:42.9]}
94. Bf4+ {[%clk 0:00:25.6]} 94... Ke6 {[%clk 0:01:44.1]} 95. Ke4 {[%clk
0:00:27]} 95... Rg6 {[%clk 0:01:45.5]} 96. Ra5 {[%clk 0:00:27.3]} 96... Rf6
{[%clk 0:01:46]} 97. Ra6+ {[%clk 0:00:27.9]} 97... Kf7 {[%clk 0:01:47.3]} 98.
Ra7+ {[%clk 0:00:29.4]} 98... Ke6 {[%clk 0:01:48.7]} 99. Be5 {[%clk 0:00:30.7]}
99... Rg6 {[%clk 0:01:49.6]} 100. Ra6+ {[%clk 0:00:30.9]} 100... Kf7 {[%clk
0:01:50.7]} 101. Ra3 {[%clk 0:00:30.4]} 101... Ke6 {[%clk 0:01:51.8]} 102. Bf4
{[%clk 0:00:30.5]} 102... Rf6 {[%clk 0:01:52.4]} 103. Rb3 {[%clk 0:00:29]}
103... Rg6 {[%clk 0:01:53.5]} 104. Rb7 {[%clk 0:00:25.5]} 104... Rf6 {[%clk
0:01:54.4]} 105. Bg5 {[%clk 0:00:26.6]} 105... Rg6 {[%clk 0:01:55.5]} 106. Kf4
{[%clk 0:00:28.1]} 106... Rg8 {[%clk 0:01:54.3]} 107. Rb5 {[%clk 0:00:25.6]}
107... Rc8 {[%clk 0:01:52.4]} 108. Ke4 {[%clk 0:00:17.3]} 108... Rc4+ {[%clk
0:01:53.1]} 109. Kd3 {[%clk 0:00:18.6]} 109... Rg4 {[%clk 0:01:54.6]} 110. Be3
{[%clk 0:00:16.1]} 110... Kd6 {[%clk 0:01:55.1]} 111. Bd4 {[%clk 0:00:16.5]}
111... Ke6 {[%clk 0:01:55.8]} 112. Rb6+ {[%clk 0:00:16]} 112... Kd5 {[%clk
0:01:56.5]} 113. Rb5+ {[%clk 0:00:17.5]} 113... Ke6 {[%clk 0:01:57.9]} 114. Ke3
{[%clk 0:00:18.9]} 114... Kd6 {[%clk 0:01:57.7]} 115. Ra5 {[%clk 0:00:19.2]}
115... Ke6 {[%clk 0:01:58.9]} 116. Be5 {[%clk 0:00:20.5]} 116... Kf5 {[%clk
0:01:59.3]} 117. Bf4+ {[%clk 0:00:20.3]} 117... Ke6 {[%clk 0:02:00.2]} 118. Ke4
{[%clk 0:00:21.9]} 118... Rg6 {[%clk 0:02:01.8]} 119. Ra6+ {[%clk 0:00:17.8]}
119... Kf7 {[%clk 0:02:03]} 120. Bd6 {[%clk 0:00:18.8]} 120... Ke6 {[%clk
0:02:04.9]} 121. Rb6 {[%clk 0:00:16.3]} 121... Kf7 {[%clk 0:02:05.8]} 122. Kf5
{[%clk 0:00:15.8]} 122... Rf6+ {[%clk 0:02:06.7]} 123. Kg5 {[%clk 0:00:14.8]}
123... Rg6+ {[%clk 0:02:07.7]} 124. Kf5 {[%clk 0:00:15.9]} 124... Rf6+ {[%clk
0:02:09.3]} 125. Ke5 {[%clk 0:00:17.5]} 125... Re6+ {[%clk 0:02:10.5]} 126. Kd5
{[%clk 0:00:19]} 126... Re2 {[%clk 0:02:10.8]} 127. Be5 {[%clk 0:00:17.8]}
127... Rd2+ {[%clk 0:02:12]} 128. Bd4 {[%clk 0:00:17.9]} 128... Re2 {[%clk
0:02:13.6]} 129. Be5 {[%clk 0:00:15.3]} 129... Rd2+ {[%clk 0:02:14.3]} 130. Ke4
{[%clk 0:00:17]} 130... Rf2 {[%clk 0:02:13.3]} 131. Bf4 {[%clk 0:00:15.5]}
131... Ra2 {[%clk 0:02:14.1]} 132. Kf5 {[%clk 0:00:15.4]} 132... Re2 {[%clk
0:02:08.6]} 133. Rb7+ {[%clk 0:00:11.6]} 133... Re7 {[%clk 0:02:09]} 134. Rb2
{[%clk 0:00:10.8]} 134... Ke8 {[%clk 0:02:06.2]} 135. Be5 {[%clk 0:00:09.6]}
135... Kd7 {[%clk 0:02:06.4]} 136. Rc2 {[%clk 0:00:09.2]} 136... Rf7+ {[%clk
0:02:03.6]} 137. Ke4 {[%clk 0:00:09.7]} 137... Rf1 {[%clk 0:02:02.1]} 138. Rc7+
{[%clk 0:00:08.8]} 138... Ke6 {[%clk 0:02:02.7]} 139. Rc6+ {[%clk 0:00:10.3]}
139... Kd7 {[%clk 0:02:04.2]} 140. Rd6+ {[%clk 0:00:11.4]} 140... Ke7 {[%clk
0:02:05]} 141. Ra6 {[%clk 0:00:13.3]} 141... Rb1 {[%clk 0:02:03.6]} 142. Bd4
{[%clk 0:00:12.7]} 142... Rb5 {[%clk 0:02:03.3]} 143. Rh6 {[%clk 0:00:12.2]}
143... Kd7 {[%clk 0:02:03.9]} 144. Kd3 {[%clk 0:00:12.7]} 144... Rd5 {[%clk
0:02:03.4]} 145. Kc4 {[%clk 0:00:13.6]} 145... Rd6 {[%clk 0:02:04.7]} 146. Rh7+
{[%clk 0:00:11.7]} 146... Ke6 {[%clk 0:02:06.4]} 147. Kd3 {[%clk 0:00:11.1]}
147... Kd5 {[%clk 0:02:06.4]} 148. Rh5+ {[%clk 0:00:11.8]} 148... Ke6 {[%clk
0:02:07.1]} 149. Ke4 {[%clk 0:00:12.8]} 149... Rc6 {[%clk 0:02:08.7]} 150. Bc5
{[%clk 0:00:13.6]} 150... Kf7 {[%clk 0:01:57]} 151. Kd5 {[%clk 0:00:11.4]}
151... Kg6 {[%clk 0:01:57.8]} 152. Rh1 {[%clk 0:00:10.1]} 1/2-1/2

[Event "*** Titled Tuesday 3|2 Blitz"]
[Site "Chess.com"]
[Date "2016.05.03"]
[Round "9"]
[White "sandropozo"]
[Black "StellarChessPro"]
[Result "0-1"]
[WhiteElo "2300"]
[BlackElo "2302"]
[TimeControl "180+2"]
[EndTime "19:04:05 PDT"]
[Termination "StellarChessPro won on time"]

1. d4 {[%clk 0:03:01.9]} 1... d5 {[%clk 0:02:57.8]} 2. c4 {[%clk 0:03:02.5]}
2... c6 {[%clk 0:02:58.9]} 3. cxd5 {[%clk 0:03:02.3]} 3... cxd5 {[%clk
0:02:59.1]} 4. Nc3 {[%clk 0:03:03.9]} 4... Nf6 {[%clk 0:03:01]} 5. Bf4 {[%clk
0:03:04.4]} 5... a6 {[%clk 0:03:02.4]} 6. e3 {[%clk 0:03:05.3]} 6... e6 {[%clk
0:03:02.9]} 7. Bd3 {[%clk 0:03:06]} 7... Be7 {[%clk 0:03:04.2]} 8. Nf3 {[%clk
0:03:05]} 8... O-O {[%clk 0:03:05.3]} 9. h3 {[%clk 0:03:01.8]} 9... Nbd7 {[%clk
0:03:06.1]} 10. O-O {[%clk 0:03:01.4]} 10... b5 {[%clk 0:03:07.1]} 11. Ne5
{[%clk 0:02:50.6]} 11... Bb7 {[%clk 0:03:07.1]} 12. Rc1 {[%clk 0:02:50.8]} 12...
Rc8 {[%clk 0:03:04.9]} 13. Qe2 {[%clk 0:02:49.7]} 13... Nxe5 {[%clk 0:03:04.4]}
14. Bxe5 {[%clk 0:02:41.5]} 14... b4 {[%clk 0:03:04.8]} 15. Na4 {[%clk 0:02:39]}
15... Qa5 {[%clk 0:03:05.6]} 16. b3 {[%clk 0:02:36.7]} 16... Nd7 {[%clk
0:02:45.2]} 17. Bg3 {[%clk 0:02:18.5]} 17... g6 {[%clk 0:02:37.6]} 18. Bf4
{[%clk 0:01:43.9]} 18... Rfe8 {[%clk 0:02:28.8]} 19. Qd2 {[%clk 0:01:32.2]}
19... Bc6 {[%clk 0:02:15.4]} 20. Qe2 {[%clk 0:01:24.6]} 20... Bb5 {[%clk
0:02:13.7]} 21. Rfd1 {[%clk 0:01:21.9]} 21... Bxd3 {[%clk 0:01:55.8]} 22. Qxd3
{[%clk 0:01:20.6]} 22... Qb5 {[%clk 0:01:56.5]} 23. Qd2 {[%clk 0:01:18.8]} 23...
Nb6 {[%clk 0:01:51.6]} 24. Nc5 {[%clk 0:01:17.8]} 24... Nd7 {[%clk 0:01:38.9]}
25. Nd3 {[%clk 0:01:16]} 25... a5 {[%clk 0:01:35.4]} 26. Bc7 {[%clk 0:01:04.3]}
26... Bd8 {[%clk 0:01:29.4]} 27. Bd6 {[%clk 0:01:01.4]} 27... Bb6 {[%clk
0:01:27.3]} 28. h4 {[%clk 0:00:55.4]} 28... Qa6 {[%clk 0:01:28.3]} 29. Nc5
{[%clk 0:00:51.9]} 29... Qb5 {[%clk 0:01:21.5]} 30. Rc2 {[%clk 0:00:51.7]} 30...
Qc6 {[%clk 0:01:13.7]} 31. Bf4 {[%clk 0:00:44.3]} 31... Nxc5 {[%clk 0:01:13.6]}
32. dxc5 {[%clk 0:00:44.9]} 32... Bc7 {[%clk 0:01:13.2]} 33. Bxc7 {[%clk
0:00:43.9]} 33... Rxc7 {[%clk 0:01:15.1]} 34. Qd4 {[%clk 0:00:44.7]} 34... Rd7
{[%clk 0:01:08.7]} 35. Qe5 {[%clk 0:00:42.4]} 35... Qc7 {[%clk 0:01:06.9]} 36.
Qf6 {[%clk 0:00:42.3]} 36... Qd8 {[%clk 0:01:04.7]} 37. Qf4 {[%clk 0:00:42.1]}
37... Qc7 {[%clk 0:01:03.1]} 38. Qf6 {[%clk 0:00:41.2]} 38... Qd8 {[%clk
0:01:01.8]} 39. Qxd8 {[%clk 0:00:41.7]} 39... Rexd8 {[%clk 0:01:02.5]} 40. c6
{[%clk 0:00:43.3]} 40... Rc7 {[%clk 0:01:03.3]} 41. Rdc1 {[%clk 0:00:44.2]}
41... Rdc8 {[%clk 0:01:04.1]} 42. f4 {[%clk 0:00:42.2]} 42... Kf8 {[%clk
0:01:05.2]} 43. Rc5 {[%clk 0:00:43]} 43... Ke7 {[%clk 0:01:06.4]} 44. Rxa5
{[%clk 0:00:43.3]} 44... Rxc6 {[%clk 0:01:07.6]} 45. Rxc6 {[%clk 0:00:44.1]}
45... Rxc6 {[%clk 0:01:09.5]} 46. Ra7+ {[%clk 0:00:44.8]} 46... Kf6 {[%clk
0:01:09.1]} 47. Rb7 {[%clk 0:00:45.2]} 47... Rc2 {[%clk 0:01:09.1]} 48. Rxb4
{[%clk 0:00:45.1]} 48... Rxa2 {[%clk 0:01:10.1]} 49. Kh2 {[%clk 0:00:45.4]}
49... h5 {[%clk 0:01:11]} 50. Kg3 {[%clk 0:00:46.4]} 50... Rb2 {[%clk
0:01:11.5]} 51. Kf3 {[%clk 0:00:46.7]} 51... Rc2 {[%clk 0:01:12.2]} 52. Rb7
{[%clk 0:00:45.8]} 52... Rc3 {[%clk 0:01:13]} 53. Kf2 {[%clk 0:00:46.2]} 53...
Rc2+ {[%clk 0:01:14]} 54. Kf3 {[%clk 0:00:47.2]} 54... Rc3 {[%clk 0:01:15.2]}
55. Kf2 {[%clk 0:00:47.8]} 55... Kg7 {[%clk 0:01:14.6]} 56. b4 {[%clk
0:00:47.4]} 56... Rc2+ {[%clk 0:01:13.8]} 57. Kf3 {[%clk 0:00:47.4]} 57... Rc3
{[%clk 0:01:15.7]} 58. Ke2 {[%clk 0:00:47.8]} 58... Rc2+ {[%clk 0:01:16.5]} 59.
Kf3 {[%clk 0:00:48.2]} 59... Rc3 {[%clk 0:01:16.8]} 60. Ke2 {[%clk 0:00:49]}
60... Rb3 {[%clk 0:01:18]} 61. b5 {[%clk 0:00:49.2]} 61... Kf8 {[%clk
0:01:14.2]} 62. b6 {[%clk 0:00:49.7]} 62... Kg7 {[%clk 0:01:13.3]} 63. Rb8
{[%clk 0:00:50.4]} 63... f6 {[%clk 0:01:12.7]} 64. b7 {[%clk 0:00:50.4]} 64...
e5 {[%clk 0:01:13.5]} 65. fxe5 {[%clk 0:00:51.3]} 65... fxe5 {[%clk 0:01:15.4]}
66. Kd2 {[%clk 0:00:52]} 66... Rb6 {[%clk 0:01:06]} 67. Kc3 {[%clk 0:00:51.6]}
67... Rb1 {[%clk 0:00:58.5]} 68. Kd3 {[%clk 0:00:50.8]} 68... Rb3+ {[%clk
0:00:57.4]} 69. Kc2 {[%clk 0:00:50.8]} 69... Rb6 {[%clk 0:00:57.6]} 70. Kc3
{[%clk 0:00:51.2]} 70... Rb1 {[%clk 0:00:56.5]} 71. Re8 {[%clk 0:00:46]} 71...
Rxb7 {[%clk 0:00:54.8]} 72. Rxe5 {[%clk 0:00:47.5]} 72... Rc7+ {[%clk
0:00:51.2]} 73. Kd3 {[%clk 0:00:47.2]} 73... Rc5 {[%clk 0:00:49.7]} 74. Kd4
{[%clk 0:00:44.3]} 74... Rc4+ {[%clk 0:00:46.5]} 75. Kxd5 {[%clk 0:00:44]} 75...
Rxh4 {[%clk 0:00:48.4]} 76. Re7+ {[%clk 0:00:41.3]} 76... Kf6 {[%clk 0:00:48.1]}
77. Ra7 {[%clk 0:00:38.5]} 77... Rh2 {[%clk 0:00:48.2]} 78. Ra2 {[%clk
0:00:38.6]} 78... h4 {[%clk 0:00:48.8]} 79. e4 {[%clk 0:00:32.8]} 79... Kg5
{[%clk 0:00:38.7]} 80. e5 {[%clk 0:00:16.9]} 80... h3 {[%clk 0:00:39.7]} 81. e6
{[%clk 0:00:17.8]} 81... hxg2 {[%clk 0:00:22.3]} 82. e7 {[%clk 0:00:15.7]} 82...
g1=Q {[%clk 0:00:22]} 83. Rxh2 {[%clk 0:00:14.2]} 83... Qxh2 {[%clk 0:00:15.1]}
84. e8=Q {[%clk 0:00:15.1]} 84... Qd2+ {[%clk 0:00:15.8]} 85. Kc4 {[%clk
0:00:15.9]} 85... Qf4+ {[%clk 0:00:15.8]} 86. Kd3 {[%clk 0:00:15.6]} 86... Qf3+
{[%clk 0:00:16.9]} 87. Kd4 {[%clk 0:00:15.7]} 87... Kh5 {[%clk 0:00:12.1]} 88.
Qh8+ {[%clk 0:00:14.9]} 88... Kg4 {[%clk 0:00:11]} 89. Qc8+ {[%clk 0:00:10.8]}
89... Qf5 {[%clk 0:00:10.7]} 90. Qd8 {[%clk 0:00:11.5]} 90... Kg3 {[%clk
0:00:11]} 91. Ke3 {[%clk 0:00:11.3]} 91... Qf3+ {[%clk 0:00:11.8]} 92. Kd2
{[%clk 0:00:11.9]} 92... Qf4+ {[%clk 0:00:12.2]} 93. Ke2 {[%clk 0:00:12.7]}
93... g5 {[%clk 0:00:13.2]} 94. Qe7 {[%clk 0:00:12.1]} 94... Qf2+ {[%clk
0:00:13.8]} 95. Kd3 {[%clk 0:00:12.8]} 95... g4 {[%clk 0:00:14.6]} 96. Qe5+
{[%clk 0:00:12.3]} 96... Qf4 {[%clk 0:00:15.2]} 97. Qe1+ {[%clk 0:00:13]} 97...
Qf2 {[%clk 0:00:15.9]} 98. Qe5+ {[%clk 0:00:12.4]} 98... Kg2 {[%clk 0:00:17.2]}
99. Kc4 {[%clk 0:00:12.3]} 99... Qf1+ {[%clk 0:00:15.4]} 100. Kb4 {[%clk
0:00:12]} 100... Qf3 {[%clk 0:00:15.1]} 101. Ka5 {[%clk 0:00:09.4]} 101... g3
{[%clk 0:00:15.2]} 102. Qb2+ {[%clk 0:00:09.9]} 102... Qf2 {[%clk 0:00:16.3]}
103. Qb7+ {[%clk 0:00:10.4]} 103... Kg1 {[%clk 0:00:17.6]} 104. Qb1+ {[%clk
0:00:10.9]} 104... Kg2 {[%clk 0:00:18.8]} 105. Qe4+ {[%clk 0:00:11.2]} 105...
Kh2 {[%clk 0:00:18.2]} 106. Qh4+ {[%clk 0:00:11.4]} 106... Kg1 {[%clk
0:00:19.2]} 107. Qg4 {[%clk 0:00:06.4]} 107... Qe1+ {[%clk 0:00:17.9]} 108. Ka4
{[%clk 0:00:04.9]} 108... Qe3 {[%clk 0:00:15.7]} 109. Ka5 {[%clk 0:00:04.7]}
109... Kf2 {[%clk 0:00:16.2]} 110. Qf5+ {[%clk 0:00:05.4]} 110... Ke2 {[%clk
0:00:17.2]} 111. Qg4+ {[%clk 0:00:05.4]} 111... Kd2 {[%clk 0:00:16.3]} 112. Qd7+
{[%clk 0:00:04.8]} 112... Qd3 {[%clk 0:00:15]} 113. Qg4 {[%clk 0:00:05]} 113...
Qe3 {[%clk 0:00:13.8]} 114. Qd7+ {[%clk 0:00:03.6]} 114... Ke2 {[%clk
0:00:15.1]} 115. Qg4+ {[%clk 0:00:04.4]} 115... Qf3 {[%clk 0:00:16.2]} 116. Qc4+
{[%clk 0:00:05.2]} 116... Kf2 {[%clk 0:00:17.2]} 117. Qd4+ {[%clk 0:00:06.4]}
117... Qe3 {[%clk 0:00:18.4]} 118. Qg4 {[%clk 0:00:06.8]} 118... Kg1 {[%clk
0:00:19.5]} 119. Qd1+ {[%clk 0:00:06.4]} 119... Kg2 {[%clk 0:00:20.1]} 120. Qc2+
{[%clk 0:00:07.1]} 120... Kf1 {[%clk 0:00:19.9]} 121. Qc4+ {[%clk 0:00:07.7]}
121... Kf2 {[%clk 0:00:20.6]} 122. Qf7+ {[%clk 0:00:07.2]} 122... Ke1 {[%clk
0:00:21.5]} 123. Qg6 {[%clk 0:00:07.5]} 123... Qd2+ {[%clk 0:00:21.1]} 124. Ka4
{[%clk 0:00:07.5]} 124... g2 {[%clk 0:00:22.5]} 125. Qe4+ {[%clk 0:00:07.5]}
125... Kf1 {[%clk 0:00:22.6]} 126. Qf3+ {[%clk 0:00:07.9]} 126... Ke1 {[%clk
0:00:24]} 127. Qg3+ {[%clk 0:00:08.1]} 127... Kd1 {[%clk 0:00:25.2]} 128. Qf3+
{[%clk 0:00:08.9]} 128... Kc1 {[%clk 0:00:26.6]} 129. Qa3+ {[%clk 0:00:08]}
129... Qb2 {[%clk 0:00:23.8]} 130. Qe3+ {[%clk 0:00:08.3]} 130... Kb1 {[%clk
0:00:25.1]} 131. Qg1+ {[%clk 0:00:08.1]} 131... Ka2 {[%clk 0:00:24.8]} 132. Qe1
{[%clk 0:00:07.6]} 132... Qd4+ {[%clk 0:00:22.4]} 133. Kb5 {[%clk 0:00:05.7]}
133... g1=Q {[%clk 0:00:23.8]} 0-1